bitfinex/quotes_SOLUSD_20240624
["timestamp","ask_amount","ask_price","bid_price","bid_amount"]
[1719238919984,65.17,128.87,128.86,100.0]
[1719238920488,65.9457952,128.87,128.86,100.0]
[1719238922001,65.9457952,128.87,128.85,100.0]
[1719238922183,45.0,128.86,128.83,100.0]
[1719238922385,20.17,128.85,128.83,100.0]
[1719238922592,45.0,128.84,128.81,200.0]
[1719238922796,45.0,128.84,128.81,100.0]
[1719238923090,20.17,128.83,128.79,100.0]
[1719238923305,45.0,128.82,128.79,100.0]
[1719238923499,45.0,128.82,128.77,200.0]
[1719238923697,20.17,128.81,128.77,200.0]
[1719238924006,65.0,128.8,128.77,200.0]
[1719238924504,0.17,128.79,128.77,200.0]
[1719238927411,20.0,128.8,128.79,200.0]
[1719238927917,6.2092983,128.84,128.77,100.0]
[1719238928114,30.39,128.81,128.75,100.0]
[1719238928294,30.39,128.81,128.7,22.3739]
[1719238928495,30.39,128.81,128.76,100.0]
[1719238928812,45.17,128.8,128.75,200.0]
[1719238929110,45.17,128.8,128.77,200.0]
[1719238929302,20.0,128.79,128.77,200.0]
[1719238929816,21.25712058,128.86,128.77,200.0]
[1719238929817,6.19492058,128.86,128.82,200.0]
[1719238930035,6.19492058,128.86,128.77,22.3259]
[1719238930036,20.0,128.85,128.84,200.0]
[1719238930314,0.7757952,128.87,128.77,22.3259]
[1719238930315,0.7757952,128.87,128.81,100.0]
[1719238930502,0.7757952,128.87,128.84,100.0]
[1719238931010,6.92628563,128.87,128.84,100.0]
[1719238931208,0.7757952,128.87,128.84,100.0]
[1719238931613,20.7757952,128.87,128.84,100.0]
[1719238931912,20.7757952,128.87,128.8,100.0]
[1719238932299,45.17,128.86,128.83,100.0]
[1719238932498,45.17,128.86,128.8,200.0]
[1719238932700,20.0,128.85,128.82,200.0]
[1719238932915,0.7757952,128.87,128.86,100.0]
[1719238933411,0.7757952,128.87,128.86,200.0]
[1719238934609,0.7757952,128.87,128.86,100.0]
[1719238935000,0.7757952,128.87,128.86,200.0]
[1719238935315,0.9457952,128.87,128.86,200.0]
[1719238935505,0.7757952,128.87,128.86,200.0]
[1719238936904,0.9457952,128.87,128.86,100.0]
[1719238937105,0.9457952,128.87,128.84,100.0]
[1719238937313,0.17,128.86,128.84,100.0]
[1719238937549,0.17,128.86,128.85,100.0]
[1719238937912,0.7757952,128.87,128.86,100.0]
[1719238938618,20.0,128.97,128.94,100.0]
[1719238938801,22.3077,128.99,128.94,100.0]
[1719238939004,20.0,128.96,128.94,100.0]
[1719238939202,22.3077,128.99,128.94,100.0]
[1719238939400,20.0,128.98,128.94,100.0]
[1719238940304,20.0,128.98,128.9,200.0]
[1719238940509,31.16555453,128.95,128.9,200.0]
[1719238940825,0.77555453,128.95,128.91,100.0]
[1719238941002,0.77555453,128.95,128.92,100.0]
[1719238941620,0.77555453,128.95,128.93,100.0]
[1719238942021,0.77555453,128.95,128.91,200.0]
[1719238942201,31.16555453,128.95,128.88,100.0]
[1719238942405,20.0,128.94,128.86,100.0]
[1719238942607,26.0378,128.94,128.9,100.0]
[1719238942923,75.56,128.93,128.9,100.0]
[1719238943094,75.56,128.93,128.9,200.0]
[1719238943295,20.0,128.92,128.9,100.0]
[1719238943512,45.0,128.91,128.88,100.0]
[1719238943717,45.0,128.91,128.86,200.0]
[1719238943718,0.17,128.9,128.86,200.0]
[1719238943900,20.17,128.9,128.88,200.0]
[1719238944100,45.0,128.89,128.88,200.0]
[1719238944514,65.17,128.89,128.88,200.0]
[1719238944907,65.17,128.89,128.86,200.0]
[1719238945114,45.0,128.89,128.84,106.4168]
[1719238945303,20.17,128.88,128.84,206.4168]
[1719238945510,45.0,128.87,128.84,100.0]
[1719238946021,20.17,128.86,128.84,100.0]
[1719238946234,45.0,128.85,128.84,100.0]
[1719238946406,65.17,128.85,128.84,200.0]
[1719238946806,65.17,128.85,128.82,200.0]
[1719238947023,45.0,128.85,128.82,200.0]
[1719238947205,20.17,128.84,128.82,200.0]
[1719238947528,20.17,128.84,128.8,6.5564]
[1719238947529,45.0,128.83,128.8,200.0]
[1719238947709,45.0,128.83,128.8,100.0]
[1719238948027,20.17,128.82,128.78,100.0]
[1719238948226,45.0,128.81,128.79,100.0]
[1719238948428,20.17,128.8,128.78,100.0]
[1719238948722,45.0,128.79,128.75,200.0]
[1719238948927,45.0,128.79,128.75,100.0]
[1719238948928,20.17,128.78,128.75,100.0]
[1719238949325,45.0,128.77,128.75,200.0]
[1719238949539,65.0,128.77,128.75,200.0]
[1719238949824,0.17,128.76,128.75,200.0]
[1719238951117,65.0,128.77,128.75,200.0]
[1719238952403,0.17,128.76,128.75,200.0]
[1719238953807,36.75080959,128.81,128.8,100.0]
[1719238954207,56.75080959,128.81,128.77,100.0]
[1719238954409,20.0,128.8,128.78,100.0]
[1719238954619,20.0,128.8,128.77,100.0]
[1719238955215,45.17,128.79,128.77,100.0]
[1719238955525,20.0,128.78,128.77,100.0]
[1719238955729,65.0,128.78,128.77,100.0]
[1719238955916,20.17,128.78,128.77,100.0]
[1719238956108,22.0453,128.85,128.83,100.0]
[1719238956316,30.39,128.89,128.82,100.0]
[1719238956317,20.0,128.84,128.82,100.0]
[1719238956521,36.395,128.89,128.82,100.0]
[1719238956718,20.0,128.88,128.83,100.0]
[1719238956918,36.395,128.89,128.82,100.0]
[1719238957137,42.54365123,128.89,128.82,100.0]
[1719238957725,45.17,128.88,128.82,100.0]
[1719238958048,45.17,128.88,128.81,100.0]
[1719238958355,20.0,128.87,128.81,100.0]
[1719238958653,45.0,128.86,128.81,100.0]
[1719238958826,0.17,128.85,128.8,100.0]
[1719238959027,0.17,128.85,128.79,100.0]
[1719238959343,20.17,128.85,128.79,100.0]
[1719238959544,45.0,128.84,128.79,100.0]
[1719238959752,45.0,128.84,128.81,200.0]
[1719238959930,20.17,128.83,128.81,200.0]
[1719238960124,20.0,128.83,128.81,200.0]
[1719238960319,42.54365123,128.89,128.84,100.0]
[1719238960516,20.0,128.88,128.84,100.0]
[1719238961722,20.0,128.88,128.83,100.0]
[1719238962324,20.0,128.88,128.84,100.0]
[1719238962752,0.17,128.87,128.82,100.0]
[1719238963124,45.17,128.87,128.83,100.0]
[1719238963342,20.0,128.86,128.82,100.0]
[1719238963549,45.0,128.85,128.81,100.0]
[1719238963843,20.17,128.84,128.81,200.0]
[1719238964056,45.0,128.83,128.81,100.0]
[1719238964225,45.0,128.83,128.81,200.0]
[1719238964424,20.17,128.82,128.81,200.0]
[1719238964718,65.17,128.82,128.81,200.0]
[1719238965545,65.17,128.82,128.81,100.0]
[1719238966052,20.0,128.82,128.81,200.0]
[1719238968354,20.17,128.82,128.81,200.0]
[1719238968858,36.53865123,128.89,128.87,100.0]
[1719238969061,6.4769,128.93,128.87,200.0]
[1719238969357,20.0,128.92,128.89,200.0]
[1719238969524,45.413,128.94,128.89,100.0]
[1719238969862,20.0,128.93,128.91,100.0]
[1719238970434,36.78497402,128.94,128.91,100.0]
[1719238970630,36.78497402,128.94,128.89,100.0]
[1719238970944,36.78497402,128.94,128.87,200.0]
[1719238971643,45.17,128.93,128.87,200.0]
[1719238971970,20.0,128.92,128.87,200.0]
[1719238972154,45.0,128.91,128.87,200.0]
[1719238972454,20.17,128.9,128.87,200.0]
[1719238972642,45.0,128.89,128.87,200.0]
[1719238973153,20.17,128.88,128.87,200.0]
[1719238973334,65.17,128.88,128.87,200.0]
[1719238973749,65.17,128.88,128.83,100.0]
[1719238974050,30.39,128.86,128.79,6.4145]
[1719238974259,45.0,128.85,128.79,100.0]
[1719238974632,20.17,128.84,128.79,100.0]
[1719238974834,45.0,128.83,128.77,200.0]
[1719238975143,45.0,128.83,128.81,100.0]
[1719238975350,20.17,128.82,128.78,100.0]
[1719238975547,20.17,128.82,128.77,100.0]
[1719238975548,45.0,128.81,128.77,100.0]
[1719238975845,45.0,128.81,128.76,100.0]
[1719238975846,20.17,128.8,128.76,200.0]
[1719238976157,45.0,128.79,128.73,100.0]
[1719238976448,20.17,128.78,128.73,200.0]
[1719238976650,45.0,128.77,128.76,100.0]
[1719238976956,65.17,128.77,128.76,100.0]
[1719238979141,65.17,128.77,128.71,200.0]
[1719238979453,20.17,128.76,128.7,100.0]
[1719238979644,45.0,128.75,128.7,100.0]
[1719238979951,20.17,128.74,128.7,100.0]
[1719238980153,45.0,128.73,128.7,100.0]
[1719238980366,0.77700078,128.71,128.68,100.0]
[1719238980564,45.77700078,128.71,128.65,6.301]
[1719238980876,20.17,128.7,128.68,100.0]
[1719238981039,45.0,128.69,128.68,100.0]
[1719238981362,65.17,128.69,128.67,100.0]
[1719238981564,45.0,128.69,128.66,100.0]
[1719238981738,20.17,128.68,128.66,200.0]
[1719238981938,45.0,128.67,128.66,200.0]
[1719238982586,65.17,128.67,128.66,200.0]
[1719238982736,20.17,128.67,128.66,200.0]
[1719238982935,0.77700078,128.71,128.7,200.0]
[1719238983633,0.77700078,128.71,128.7,100.0]
[1719238984059,0.77700078,128.71,128.7,200.0]
[1719238984857,0.94700078,128.71,128.7,200.0]
[1719238986867,0.77700078,128.71,128.7,200.0]
[1719238987748,20.0,128.77,128.76,200.0]
[1719238988454,6.4579,128.87,128.71,6.3202]
[1719238988657,30.39,128.86,128.81,100.0]
[1719238988857,50.39,128.86,128.81,100.0]
[1719238989252,30.39,128.86,128.81,100.0]
[1719238989651,30.39,128.86,128.82,100.0]
[1719238990088,30.39,128.86,128.81,100.0]
[1719238990248,30.39,128.86,128.78,100.0]
[1719238990947,0.17,128.85,128.78,100.0]
[1719238991152,45.17,128.85,128.76,100.0]
[1719238991364,30.39,128.82,128.79,100.0]
[1719238991541,6.4579,128.87,128.8,100.0]
[1719238991866,20.0,128.86,128.81,100.0]
[1719238993274,45.17,128.85,128.81,100.0]
[1719238993453,45.17,128.85,128.83,100.0]
[1719238993766,20.0,128.84,128.83,100.0]
[1719238993970,36.58011255,128.88,128.85,200.0]
[1719238994548,6.19011255,128.88,128.85,200.0]
[1719238994765,30.39,128.9,128.85,200.0]
[1719238995295,30.39,128.9,128.87,200.0]
[1719238995871,20.0,128.89,128.87,100.0]
[1719238996058,20.0,128.89,128.85,100.0]
[1719238996256,20.0,128.89,128.87,100.0]
[1719238996660,20.0,128.89,128.88,100.0]
[1719238997253,20.0,128.89,128.88,106.3582]
[1719238997676,30.39,128.96,128.91,100.0]
[1719238997856,36.63723055,128.96,128.91,100.0]
[1719238998369,36.63723055,128.96,128.9,100.0]
[1719238998670,36.63723055,128.96,128.91,100.0]
[1719238998970,20.0,128.95,128.91,100.0]
[1719238999747,45.17,128.94,128.91,100.0]
[1719238999966,20.0,128.93,128.91,100.0]
[1719239000172,45.0,128.92,128.9,100.0]
[1719239000481,20.9457952,128.91,128.9,100.0]
[1719239000646,65.9457952,128.91,128.9,100.0]
[1719239001873,20.7757952,128.91,128.9,100.0]
[1719239003272,65.9457952,128.91,128.9,100.0]
[1719239003458,20.7757952,128.91,128.9,100.0]
[1719239004758,20.9457952,128.91,128.9,100.0]
[1719239005160,65.9457952,128.91,128.9,100.0]
[1719239005964,65.9457952,128.91,128.89,200.0]
[1719239006169,65.7757952,128.91,128.89,200.0]
[1719239006478,0.17,128.9,128.89,200.0]
[1719239007581,0.7757952,128.91,128.89,200.0]
[1719239009772,30.39,129.0,128.97,200.0]
[1719239010373,36.72984073,129.0,128.97,200.0]
[1719239010753,36.72984073,129.0,128.88,6.3582]
[1719239010754,36.72984073,129.0,128.95,200.0]
[1719239011160,36.72984073,129.0,128.97,100.0]
[1719239011361,36.72984073,129.0,128.97,200.0]
[1719239011565,36.72984073,129.0,128.95,200.0]
[1719239011973,20.0,128.99,128.97,200.0]
[1719239012275,20.0,128.99,128.95,200.0]
[1719239012853,45.17,128.98,128.97,100.0]
[1719239013367,65.17,128.98,128.95,200.0]
[1719239013568,65.17,128.98,128.93,200.0]
[1719239013569,45.17,128.98,128.93,200.0]
[1719239013871,45.17,128.98,128.95,100.0]
[1719239013872,65.0,128.97,128.95,100.0]
[1719239014065,20.0,128.97,128.95,100.0]
[1719239014259,45.17,128.96,128.95,100.0]
[1719239014467,65.17,128.96,128.95,200.0]
[1719239015465,20.17,128.96,128.95,200.0]
[1719239015865,20.0,128.96,128.95,200.0]
[1719239016976,21.5801,129.04,129.0,200.0]
[1719239017275,30.39,129.06,129.02,100.0]
[1719239017480,20.0,129.05,129.0,200.0]
[1719239017682,20.0,129.05,129.02,100.0]
[1719239018184,30.39,129.06,129.02,100.0]
[1719239019187,30.39,129.06,129.03,100.0]
[1719239019387,20.0,129.05,129.03,100.0]
[1719239020270,20.0,129.05,129.04,100.0]
[1719239020466,20.77495351,129.05,129.04,100.0]
[1719239020982,20.77495351,129.05,129.02,100.0]
[1719239021163,0.77495351,129.05,129.02,100.0]
[1719239021986,0.77495351,129.05,129.03,100.0]
[1719239022172,0.77495351,129.05,129.04,100.0]
[1719239022501,0.94495351,129.05,129.04,100.0]
[1719239022669,0.94495351,129.05,129.03,100.0]
[1719239022981,0.17,129.04,129.02,100.0]
[1719239023181,45.17,129.04,129.02,100.0]
[1719239023482,20.0,129.03,129.02,100.0]
[1719239023688,65.0,129.03,129.02,100.0]
[1719239023977,65.17,129.03,129.02,100.0]
[1719239024364,20.17,129.03,129.02,100.0]
[1719239025762,65.17,129.03,129.02,100.0]
[1719239026180,20.17,129.03,129.02,100.0]
[1719239028885,65.17,129.03,129.02,100.0]
[1719239029470,65.17,129.03,129.01,100.0]
[1719239029672,45.0,129.02,129.0,100.0]
[1719239029885,20.0,129.01,129.0,100.0]
[1719239030270,65.17,129.01,129.0,100.0]
[1719239030667,91.16,129.01,128.98,100.0]
[1719239030993,91.16,129.01,128.95,116.2262]
[1719239030994,45.17,129.0,128.95,100.0]
[1719239031201,25.99,128.98,128.97,100.0]
[1719239031388,91.16,128.98,128.97,100.0]
[1719239032275,91.16,128.98,128.93,206.4662]
[1719239032578,45.0,128.97,128.93,200.0]
[1719239032781,20.17,128.96,128.95,100.0]
[1719239032989,65.17,128.96,128.95,100.0]
[1719239033285,65.17,128.96,128.93,100.0]
[1719239033484,45.0,128.95,128.93,100.0]
[1719239033875,20.17,128.94,128.93,100.0]
[1719239034083,65.17,128.94,128.93,100.0]
[1719239034286,65.17,128.94,128.93,200.0]
[1719239035701,65.17,128.94,128.91,200.0]
[1719239035999,45.0,128.93,128.91,200.0]
[1719239036496,20.17,128.92,128.91,200.0]
[1719239036679,65.17,128.92,128.91,200.0]
[1719239037081,65.17,128.92,128.91,100.0]
[1719239038104,65.17,128.92,128.89,200.0]
[1719239038276,45.0,128.91,128.89,200.0]
[1719239038475,45.0,128.91,128.87,6.264]
[1719239038476,45.0,128.91,128.87,200.0]
[1719239038701,20.17,128.9,128.87,100.0]
[1719239038889,45.0,128.89,128.87,100.0]
[1719239039193,45.0,128.89,128.87,200.0]
[1719239039398,20.17,128.88,128.87,200.0]
[1719239039583,65.17,128.88,128.87,200.0]
[1719239039973,20.17,128.88,128.87,200.0]
[1719239040392,20.77495351,128.88,128.87,200.0]
[1719239041777,20.94495351,128.88,128.87,200.0]
[1719239044308,65.94495351,128.88,128.87,100.0]
[1719239044475,65.94495351,128.88,128.83,200.0]
[1719239044679,45.0,128.87,128.81,200.0]
[1719239044900,20.17,128.86,128.81,200.0]
[1719239045079,45.0,128.85,128.83,100.0]
[1719239045274,45.0,128.85,128.83,200.0]
[1719239045495,20.17,128.84,128.83,200.0]
[1719239045802,0.77495351,128.88,128.87,200.0]
[1719239046873,0.77495351,128.88,128.85,100.0]
[1719239047079,0.17,128.87,128.85,100.0]
[1719239047392,0.17,128.87,128.84,100.0]
[1719239047585,0.17,128.87,128.86,100.0]
[1719239047994,0.77495351,128.88,128.87,100.0]
[1719239048378,0.77495351,128.88,128.87,106.6172]
[1719239048999,0.77495351,128.88,128.87,122.9175]
[1719239049183,6.1857,128.99,128.96,100.0]
[1719239049383,30.37,129.0,128.96,100.0]
[1719239049902,16.016,129.01,128.98,100.0]
[1719239050131,36.4999,129.02,128.95,200.0]
[1719239050285,42.80971896,129.02,128.97,100.0]
[1719239050486,20.0,129.01,128.97,200.0]
[1719239050801,12.43971896,129.02,128.97,200.0]
[1719239051710,6.30981896,129.02,128.97,200.0]
[1719239052004,16.016,129.05,128.97,200.0]
[1719239052210,20.0,129.04,128.99,200.0]
[1719239052815,20.0,129.04,128.99,100.0]
[1719239053305,20.0,129.04,128.97,200.0]
[1719239053485,45.17,129.03,128.97,200.0]
[1719239054007,20.0,129.02,128.99,200.0]
[1719239054314,45.0,129.01,128.99,200.0]
[1719239054483,65.17,129.01,128.97,200.0]
[1719239054686,65.17,129.01,128.95,100.0]
[1719239054894,65.17,129.01,128.96,100.0]
[1719239055097,65.17,129.01,128.98,100.0]
[1719239056106,65.17,129.01,128.99,100.0]
[1719239056510,65.17,129.01,128.98,100.0]
[1719239059194,65.17,129.01,128.98,200.0]
[1719239059604,65.17,129.01,128.98,100.0]
[1719239059903,65.17,129.01,128.96,100.0]
[1719239060114,1.91,128.99,128.96,100.0]
[1719239060492,0.77543425,128.97,128.96,100.0]
[1719239060995,65.94543425,128.97,128.96,100.0]
[1719239061803,20.94543425,128.97,128.96,100.0]
[1719239063683,0.77543425,128.97,128.96,100.0]
[1719239066109,0.94543425,128.97,128.96,100.0]
[1719239068621,0.77543425,128.97,128.96,100.0]
[1719239068814,6.09338726,129.06,129.03,100.0]
[1719239069020,46.3394,129.08,129.05,100.0]
[1719239069225,1.91,129.06,129.05,100.0]
[1719239069905,1.91,129.06,128.99,6.1603]
[1719239069906,1.91,129.06,129.02,200.0]
[1719239070313,0.17,129.05,129.04,100.0]
[1719239070619,0.17,129.05,129.02,200.0]
[1719239070818,0.17,129.05,129.02,100.0]
[1719239071000,20.17,129.05,129.0,200.0]
[1719239071320,45.0,129.04,129.02,100.0]
[1719239071520,45.0,129.04,129.0,200.0]
[1719239071720,20.17,129.03,129.0,200.0]
[1719239071902,45.0,129.02,128.98,200.0]
[1719239072514,20.17,129.01,128.98,200.0]
[1719239072819,45.0,129.0,128.98,200.0]
[1719239073009,65.0,129.0,128.98,200.0]
[1719239073211,0.17,128.99,128.98,200.0]
[1719239074124,0.17,128.99,128.98,100.0]
[1719239074328,0.17,128.99,128.98,200.0]
[1719239075619,0.17,128.99,128.98,100.0]
[1719239075804,0.17,128.99,128.98,200.0]
[1719239076006,0.17,128.99,128.94,100.0]
[1719239076511,0.17,128.99,128.96,100.0]
[1719239076898,0.17,128.99,128.94,200.0]
[1719239077227,0.17,128.99,128.97,100.0]
[1719239077415,0.17,128.99,128.95,100.0]
[1719239078305,0.17,128.99,128.96,100.0]
[1719239078508,0.17,128.99,128.95,100.0]
[1719239078706,0.17,128.99,128.96,100.0]
[1719239078919,0.17,128.99,128.95,100.0]
[1719239079113,0.17,128.99,128.96,100.0]
[1719239079514,0.17,128.99,128.95,100.0]
[1719239079717,0.17,128.99,128.97,100.0]
[1719239080411,0.77537412,128.98,128.97,100.0]
[1719239080600,0.77537412,128.98,128.95,100.0]
[1719239080807,0.17,128.97,128.96,100.0]
[1719239083822,0.77537412,128.98,128.97,100.0]
[1719239084326,0.77537412,128.98,128.97,115.1064]
[1719239087829,0.94537412,128.98,128.97,115.1064]
[1719239089714,0.94537412,128.98,128.97,215.1064]
[1719239089914,0.94537412,128.98,128.97,200.0]
[1719239090307,0.77537412,128.98,128.97,200.0]
[1719239091619,0.94537412,128.98,128.97,200.0]
[1719239104743,26.94537412,128.98,128.95,100.0]
[1719239105041,26.94537412,128.98,128.94,100.0]
[1719239105042,26.77537412,128.98,128.94,100.0]
[1719239105255,65.17,128.97,128.94,100.0]
[1719239105743,65.17,128.97,128.94,200.0]
[1719239105916,65.17,128.97,128.94,100.0]
[1719239106126,26.0,128.95,128.92,200.0]
[1719239106436,65.17,128.94,128.92,200.0]
[1719239107429,65.17,128.94,128.92,100.0]
[1719239107613,65.17,128.94,128.92,200.0]
[1719239108019,20.17,128.94,128.92,200.0]
[1719239108324,20.17,128.94,128.86,6.4962]
[1719239108325,0.77537412,128.98,128.96,100.0]
[1719239108529,26.0,128.97,128.93,200.0]
[1719239108836,65.0,128.96,128.93,200.0]
[1719239109039,65.0,128.96,128.95,100.0]
[1719239109438,65.0,128.96,128.93,200.0]
[1719239109737,0.17,128.95,128.93,200.0]
[1719239110050,26.0,128.94,128.91,100.0]
[1719239110344,60.2172,128.93,128.87,100.0]
[1719239110641,80.2172,128.93,128.87,100.0]
[1719239110828,26.0,128.91,128.9,100.0]
[1719239111027,80.0472,128.93,128.91,100.0]
[1719239111234,0.17,128.92,128.91,100.0]
[1719239112352,0.17,128.92,128.88,100.0]
[1719239113024,0.17,128.92,128.9,100.0]
[1719239113335,0.17,128.92,128.89,100.0]
[1719239113849,20.0,128.93,128.92,100.0]
[1719239115349,20.17,128.93,128.92,100.0]
[1719239116240,20.17,128.93,128.91,100.0]
[1719239116241,65.17,128.93,128.91,100.0]
[1719239116440,45.17,128.92,128.91,100.0]
[1719239116826,65.17,128.92,128.91,100.0]
[1719239117031,20.0,128.92,128.91,100.0]
[1719239117747,20.0,128.92,128.9,100.0]
[1719239117944,26.0,128.95,128.93,100.0]
[1719239117945,20.0,128.94,128.93,100.0]
[1719239118344,20.17,128.94,128.93,200.0]
[1719239118851,20.0,128.94,128.93,200.0]
[1719239119748,65.0,128.94,128.93,100.0]
[1719239119950,20.0,128.94,128.93,200.0]
[1719239120631,20.77537412,128.94,128.93,200.0]
[1719239121231,20.94537412,128.94,128.93,200.0]
[1719239121638,20.94537412,128.94,128.93,100.0]
[1719239121958,65.94537412,128.94,128.93,100.0]
[1719239122256,65.94537412,128.94,128.93,200.0]
[1719239123160,65.94537412,128.94,128.93,100.0]
[1719239123347,65.94537412,128.94,128.91,200.0]
[1719239123549,71.0,128.93,128.91,100.0]
[1719239123732,0.17,128.92,128.91,100.0]
[1719239123941,20.17,128.92,128.91,100.0]
[1719239124135,65.17,128.92,128.91,100.0]
[1719239125045,65.17,128.92,128.89,100.0]
[1719239125250,65.17,128.92,128.91,100.0]
[1719239125650,65.17,128.92,128.89,200.0]
[1719239125852,45.0,128.91,128.89,200.0]
[1719239126053,45.0,128.91,128.82,22.3296]
[1719239126054,26.0,128.9,128.82,22.3296]
[1719239126270,65.17,128.89,128.87,100.0]
[1719239126761,20.17,128.89,128.87,200.0]
[1719239127872,20.17,128.89,128.87,100.0]
[1719239128048,20.17,128.89,128.87,200.0]
[1719239130169,20.0,128.89,128.87,200.0]
[1719239130473,26.0,128.92,128.89,100.0]
[1719239130652,20.0,128.91,128.87,100.0]
[1719239130853,26.0,128.89,128.87,100.0]
[1719239131049,54.15720931,128.94,128.88,100.0]
[1719239131251,26.0,128.9,128.89,100.0]
[1719239131439,46.0,128.9,128.88,100.0]
[1719239131643,45.17,128.89,128.88,100.0]
[1719239131847,65.17,128.89,128.88,100.0]
[1719239132361,20.17,128.89,128.88,100.0]
[1719239133448,20.0,128.89,128.88,100.0]
[1719239134860,20.17,128.89,128.87,100.0]
[1719239135072,54.15720931,128.94,128.87,100.0]
[1719239135375,26.0,128.9,128.85,100.0]
[1719239135581,45.0,128.89,128.85,200.0]
[1719239135863,20.17,128.88,128.87,100.0]
[1719239136078,20.17,128.88,128.87,200.0]
[1719239136256,20.17,128.88,128.87,100.0]
[1719239136464,20.17,128.88,128.85,200.0]
[1719239138283,20.17,128.88,128.85,100.0]
[1719239138473,20.17,128.88,128.86,100.0]
[1719239138881,26.0,128.87,128.86,100.0]
[1719239139384,20.17,128.87,128.86,100.0]
[1719239139757,20.0,128.87,128.86,100.0]
[1719239140392,22.9179,128.97,128.93,200.0]
[1719239140691,20.0,128.96,128.93,200.0]
[1719239140860,42.4753,128.97,128.93,200.0]
[1719239142665,20.0,128.96,128.93,200.0]
[1719239143085,20.0,128.96,128.95,100.0]
[1719239143678,20.0,128.96,128.95,200.0]
[1719239144087,26.0,128.97,128.95,200.0]
[1719239144295,26.0,128.97,128.95,100.0]
[1719239144896,0.17,128.96,128.93,100.0]
[1719239145193,45.17,128.96,128.92,100.0]
[1719239145399,20.0,128.95,128.92,100.0]
[1719239145574,45.0,128.94,128.92,100.0]
[1719239145762,0.17,128.93,128.9,100.0]
[1719239146068,20.17,128.93,128.89,100.0]
[1719239146273,45.0,128.92,128.89,200.0]
[1719239146673,46.17,128.91,128.89,100.0]
[1719239146881,45.0,128.9,128.89,100.0]